fUST/lending_fUST_20250127
["ID","MTS","AMOUNT","RATE_DAILY","PERIOD"]
[350589474,1737978641438,-500.0,0.00016575,2]
[350589475,1737978641448,-500.0,0.00016575,2]
[350589476,1737978641457,-500.0,0.00016575,2]
[350589477,1737978641467,-500.0,0.00016575,2]
[350589478,1737978641476,-500.0,0.00016575,2]
[350589479,1737978641486,-595.89,0.00016575,2]
[350589480,1737978641496,-500.0,0.00016575,2]
[350589481,1737978641505,-546.11,0.00016575,2]
[350589482,1737978641516,-500.0,0.00016575,2]
[350589483,1737978641525,-500.0,0.00016575,2]
[350589484,1737978641535,-500.0,0.00016575,2]
[350589485,1737978641546,-500.0,0.00016575,2]
[350589486,1737978641555,-645.94,0.00016575,2]
[350589487,1737978641565,-500.0,0.00016575,2]
[350589488,1737978641575,-500.0,0.00016575,2]
[350589489,1737978641584,-500.0,0.00016575,2]
[350589490,1737978641594,-500.0,0.00016575,2]
[350589491,1737978641604,-536.34,0.00016575,2]
[350589492,1737978641613,-500.0,0.00016575,2]
[350589493,1737978641623,-500.0,0.00016575,2]
[350589494,1737978641633,-500.0,0.00016575,2]
[350589495,1737978641642,-500.0,0.00016575,2]
[350589496,1737978641652,-500.0,0.00016575,2]
[350589497,1737978641661,-500.0,0.00016575,2]
[350589498,1737978641671,-559.93,0.00016575,2]
[350589499,1737978641681,-500.0,0.00016575,2]
[350589500,1737978641691,-500.0,0.00016575,2]
[350589501,1737978641701,-500.0,0.00016575,2]
[350589502,1737978641710,-500.0,0.00016575,2]
[350589503,1737978641720,-500.0,0.00016575,2]
[350589504,1737978641730,-500.0,0.00016575,2]
[350589505,1737978641739,-500.0,0.00016575,2]
[350589506,1737978641749,-553.17055382,0.00016575,2]
[350589507,1737978641759,-500.0,0.00016575,2]
[350589508,1737978641768,-500.0,0.00016575,2]
[350589509,1737978641778,-500.0,0.00016575,2]
[350589510,1737978641788,-259.84897959,0.00016575,2]
[350589511,1737978641797,-500.0,0.00016575,2]
[350589512,1737978641807,-648.24938065,0.00016575,2]
[350589513,1737978641816,-649.0,0.00016575,2]
[350589514,1737978641826,-500.0,0.00016575,2]
[350589515,1737978641835,-500.0,0.00016575,2]
[350589516,1737978641845,-514.02,0.00016575,2]
[350589517,1737978641855,-500.0,0.00016575,2]
[350589518,1737978641865,-519.9,0.00016575,2]
[350589519,1737978641875,-500.0,0.00016575,2]
[350589520,1737978641885,-500.0,0.00016575,2]
[350589521,1737978641895,-500.0,0.00016575,2]
[350589522,1737978641905,-304.41320996,0.00016575,2]
[350589523,1737978641916,-247.97590775,0.00016575,2]
[350589524,1737978641925,-500.0,0.00016575,2]
[350589525,1737978641934,-500.0,0.00016575,2]
[350589526,1737978641944,-500.0,0.00016575,2]
[350589527,1737978641958,-500.0,0.00016575,2]
[350589528,1737978641967,-500.0,0.00016575,2]
[350589529,1737978641977,-500.0,0.00016575,2]
[350589530,1737978641987,-500.0,0.00016575,2]
[350589531,1737978641997,-500.0,0.00016575,2]
[350589532,1737978642006,-500.0,0.00016575,2]
[350589533,1737978642016,-617.07,0.00016575,2]
[350589534,1737978642026,-502.34,0.00016575,2]
[350589535,1737978642036,-500.0,0.00016575,2]
[350589536,1737978642045,-595.06,0.00016575,2]
[350589537,1737978642055,-500.0,0.00016575,2]
[350589538,1737978642064,-500.0,0.00016575,2]
[350589539,1737978642074,-3060.68,0.00016575,2]
[350589540,1737978642084,-523.23128029,0.00016575,2]
[350589541,1737978642093,-500.0,0.00016575,2]
[350589542,1737978642102,-500.0,0.00016575,2]
[350589543,1737978642112,-500.0,0.00016575,2]
[350589544,1737978642122,-500.0,0.00016575,2]
[350589545,1737978642132,-500.0,0.00016575,2]
[350589546,1737978642141,-500.0,0.00016575,2]
[350589547,1737978642151,-500.0,0.00016575,2]
[350589548,1737978642161,-500.0,0.00016575,2]
[350589549,1737978642170,-500.0,0.00016575,2]
[350589550,1737978642180,-500.0,0.00016575,2]
[350589551,1737978642189,-500.0,0.00016575,2]
[350589552,1737978642199,-500.0,0.00016575,2]
[350589553,1737978642209,-500.0,0.00016575,2]
[350589554,1737978642218,-517.44,0.00016575,2]
[350589555,1737978642227,-417.11823162,0.00016575,2]
[350589556,1737978642237,-500.0,0.00016575,2]
[350589557,1737978642246,-500.0,0.00016575,2]
[350589558,1737978642256,-500.0,0.00016575,2]
[350589559,1737978642266,-500.0,0.00016575,2]
[350589560,1737978642275,-500.0,0.00016575,2]
[350589561,1737978642285,-500.0,0.00016575,2]
[350589562,1737978642294,-410.18,0.00016575,2]
[350589563,1737978642303,-500.0,0.00016575,2]
[350589564,1737978642313,-500.0,0.00016575,2]
[350589565,1737978642322,-500.0,0.00016575,2]
[350589566,1737978642330,-151.47,0.00016575,2]
[350589567,1737978642340,-500.0,0.00016575,2]
[350589568,1737978642350,-503.97109054,0.00016575,2]
[350589569,1737978642360,-739.51,0.00016575,2]
[350589570,1737978642370,-500.0,0.00016575,2]
[350589571,1737978642379,-500.0,0.00016575,2]
[350589572,1737978642389,-500.0,0.00016575,2]
[350589573,1737978642399,-500.0,0.00016575,2]
[350589574,1737978642409,-500.0,0.00016575,2]
[350589575,1737978642419,-500.0,0.00016575,2]
[350589576,1737978642428,-500.0,0.00016575,2]
[350589577,1737978642437,-500.0,0.00016575,2]
[350589578,1737978642447,-500.0,0.00016575,2]
[350589579,1737978642456,-500.0,0.00016575,2]
[350589580,1737978642466,-500.0,0.00016575,2]
[350589581,1737978642475,-500.0,0.00016575,2]
[350589582,1737978642484,-500.0,0.00016575,2]
[350589583,1737978642493,-500.0,0.00016575,2]
[350589584,1737978642503,-500.0,0.00016575,2]
[350589585,1737978642512,-500.0,0.0001661,2]
[350589586,1737978642521,-250.36,0.00016611,2]
[350589587,1737978642531,-697.37317726,0.00016612,2]
[350589588,1737978642540,-500.0,0.00016712,2]
[350589590,1737978642551,-178.14,0.00016712,2]
[350589591,1737978642560,-500.0,0.00016712,2]
[350589592,1737978642569,-180.52,0.00016712,2]
[350589595,1737978642579,-150.59,0.00016712,2]
[350589597,1737978642588,-220.45,0.00016712,2]
[350589599,1737978642597,-500.0,0.00016712,2]
[350589600,1737978642606,-500.0,0.00016712,2]
[350589601,1737978642615,-464.02,0.00016712,2]
[350589602,1737978642625,-500.0,0.00016712,2]
[350589603,1737978642635,-203.96,0.00016712,2]
[350589604,1737978642644,-213.5,0.00016712,2]
[350589605,1737978642654,-421.65,0.00016712,2]
[350589608,1737978642664,-158.08,0.00016712,2]
[350589611,1737978642673,-500.0,0.00016712,2]
[350589614,1737978642683,-416.48,0.00016712,2]
[350589617,1737978642692,-500.0,0.00016712,2]
[350589619,1737978642701,-500.0,0.00016712,2]
[350589621,1737978642710,-500.0,0.00016712,2]
[350589623,1737978642719,-500.0,0.00016712,2]
[350589625,1737978642729,-500.0,0.00016712,2]
[350589627,1737978642738,-211.25,0.00016712,2]
[350589629,1737978642748,-500.0,0.00016712,2]
[350589631,1737978642758,-214.87,0.00016712,2]
[350589633,1737978642767,-500.0,0.00016712,2]
[350589635,1737978642777,-500.0,0.00016712,2]
[350589637,1737978642787,-617.07,0.00016712,2]
[350589639,1737978642796,-272.88,0.00016712,2]
[350589641,1737978642806,-595.06,0.00016712,2]
[350589643,1737978642815,-3060.68,0.00016712,2]
[350589645,1737978642824,-214.51,0.00016712,2]
[350589647,1737978642833,-500.0,0.00016712,2]
[350589649,1737978642843,-500.0,0.00016712,2]
[350589650,1737978642852,-531.3,0.00016712,2]
[350589651,1737978642862,-500.0,0.00016712,2]
[350589652,1737978642871,-360.31,0.00016712,2]
[350589653,1737978642880,-500.0,0.00016712,2]
[350589655,1737978642890,-500.0,0.00016712,2]
[350589656,1737978642899,-500.0,0.00016712,2]
[350589657,1737978642910,-500.0,0.00016712,2]
[350589658,1737978643020,-500.0,0.00016712,2]
[350589659,1737978643031,-394.08,0.00016712,2]
[350589660,1737978643040,-500.0,0.00016712,2]
[350589661,1737978643049,-500.0,0.00016712,2]
[350589662,1737978643058,-500.0,0.00016712,2]
[350589663,1737978643067,-500.0,0.00016712,2]
[350589664,1737978643077,-500.0,0.00016712,2]
[350589665,1737978643086,-500.0,0.00016712,2]
[350589666,1737978643096,-500.0,0.00016712,2]
[350589667,1737978643105,-500.0,0.00016712,2]
[350589668,1737978643114,-739.51,0.00016712,2]
[350589669,1737978643123,-500.0,0.00016712,2]
[350589670,1737978643133,-500.0,0.00016712,2]
[350589671,1737978643143,-500.0,0.00016712,2]
[350589672,1737978643154,-500.0,0.00016712,2]
[350589673,1737978643164,-500.0,0.00016712,2]
[350589674,1737978643174,-500.0,0.00016712,2]
[350589675,1737978643186,-500.0,0.00016712,2]
[350589676,1737978643196,-500.0,0.00016712,2]
[350589677,1737978643206,-472.1,0.00016712,2]
[350589678,1737978643216,-500.0,0.00016712,2]
[350589679,1737978643225,-152.0,0.00016787,2]
[350589680,1737978643235,-160.43,0.00016849,2]
[350589681,1737978643245,-500.0,0.00016849,2]
[350589682,1737978643254,-532.38706986,0.00016849,2]
[350589683,1737978643264,-314.72,0.00016849,2]
[350589684,1737978643274,-234.74,0.00016849,2]
[350589685,1737978643284,-500.0,0.00016849,2]
[350589686,1737978643293,-500.0,0.00016849,2]
[350589688,1737978643303,-500.0,0.00016849,2]
[350589689,1737978643312,-500.0,0.00016849,2]
[350589690,1737978643322,-500.0,0.00016849,2]
[350589691,1737978643331,-617.07,0.00016849,2]
[350589692,1737978643341,-595.06,0.00016849,2]
[350589693,1737978643351,-3060.68,0.00016849,2]
[350589694,1737978643360,-500.0,0.00016849,2]
[350589695,1737978643369,-500.0,0.00016849,2]
[350589696,1737978643378,-500.0,0.00016849,2]
[350589697,1737978643387,-500.0,0.00016849,2]
[350589698,1737978643397,-428.78,0.00016849,2]
[350589699,1737978643411,-500.0,0.00016849,2]
[350589700,1737978643420,-500.0,0.00016849,2]
[350589701,1737978643430,-500.0,0.00016849,2]
[350589702,1737978643440,-500.0,0.00016849,2]
[350589703,1737978643450,-213.23,0.00016849,2]
[350589704,1737978643460,-500.0,0.00016849,2]
[350589705,1737978643470,-301.06,0.00016849,2]
[350589706,1737978643479,-500.0,0.00016849,2]
[350589707,1737978643489,-500.0,0.00016849,2]
[350589708,1737978643499,-739.51,0.00016849,2]
[350589709,1737978643508,-185.28913367,0.00016849,2]
[350589710,1737978643525,-235.91086633,0.00016849,2]
[350589711,1737978643534,-500.0,0.00016849,2]
[350589712,1737978643544,-87.63413067,0.00016849,2]
[350589713,1737978643556,-412.36586933,0.00016849,2]
[350589714,1737978643566,-500.0,0.00016849,2]
[350589715,1737978643576,-628.5,0.00016849,2]
[350589716,1737978643585,-335.49,0.00016849,2]
[350589717,1737978643596,-500.0,0.00016849,2]
[350589718,1737978643606,-278.12,0.00016986,2]
[350589719,1737978643615,-305.88,0.00016986,2]
[350589720,1737978643624,-500.0,0.00016986,2]
[350589721,1737978643633,-529.34,0.00016986,2]
[350589722,1737978643643,-500.0,0.00016986,2]
[350589723,1737978643657,-182.33,0.00016986,2]
[350589724,1737978643666,-617.07,0.00016986,2]
[350589725,1737978643676,-595.06,0.00016986,2]
[350589726,1737978643685,-3060.68,0.00016986,2]
[350589727,1737978643695,-500.0,0.00016986,2]
[350589728,1737978643705,-500.0,0.00016986,2]
[350589729,1737978643715,-500.0,0.00016986,2]
[350589730,1737978643724,-603.24,0.00016986,2]
[350589731,1737978643733,-500.0,0.00016986,2]
[350589732,1737978643743,-344.28,0.00016986,2]
[350589733,1737978643753,-500.0,0.00016986,2]
[350589734,1737978643762,-500.0,0.00016986,2]
[350589735,1737978643772,-500.0,0.00016986,2]
[350589736,1737978643781,-233.68,0.00016986,2]
[350589737,1737978643790,-153.85,0.00016986,2]
[350589738,1737978643799,-739.51,0.00016986,2]
[350589739,1737978643809,-161.5,0.00016986,2]
[350589740,1737978643819,-500.0,0.00016986,2]
[350589741,1737978643828,-500.0,0.00016986,2]
[350589742,1737978643838,-151.0,0.00016986,2]
[350589743,1737978643847,-504.88,0.00016986,2]
[350589744,1737978643857,-7945.71521519,0.00017123,5]
[350589745,1737978643866,-500.0,0.00017123,2]
[350589746,1737978643875,-500.0,0.00017123,2]
[350589747,1737978643884,-151.0,0.00017123,2]
[350589748,1737978643894,-955.844356,0.00017123,2]
[350589749,1737978643906,-955.844356,0.00017123,2]
[350589750,1737978643916,-617.07,0.00017123,2]
[350589751,1737978643925,-595.06,0.00017123,2]
[350589752,1737978643934,-3060.68,0.00017123,2]
[350589753,1737978643947,-151.0,0.00017123,2]
[350589754,1737978643956,-151.0,0.00017123,2]
[350589755,1737978643966,-219.34,0.00017123,2]
[350589756,1737978643975,-151.0,0.00017123,2]
[350589757,1737978643984,-500.0,0.00017123,2]
[350589758,1737978643994,-500.0,0.00017123,2]
[350589759,1737978644003,-500.0,0.00017123,2]
[350589760,1737978644013,-500.0,0.00017123,2]
[350589761,1737978644023,-500.0,0.00017123,2]
[350589762,1737978644033,-500.0,0.00017123,2]
[350589763,1737978644042,-739.51,0.00017123,2]
[350589764,1737978644051,-151.0,0.00017123,2]
[350589765,1737978644060,-500.0,0.00017123,2]
[350589766,1737978644070,-500.0,0.00017123,2]
[350589767,1737978644079,-151.0,0.00017123,2]
[350589768,1737978644088,-151.0,0.0001726,2]
[350589769,1737978644098,-151.0,0.0001726,2]
[350589770,1737978644106,-151.0,0.0001726,2]
[350589771,1737978644116,-500.0,0.0001726,2]
[350589772,1737978644125,-500.0,0.0001726,2]
[350589773,1737978644136,-617.07,0.0001726,2]
[350589774,1737978644150,-595.06,0.0001726,2]
[350589775,1737978644165,-3060.68,0.0001726,2]
[350589776,1737978644178,-500.0,0.0001726,2]
[350589777,1737978644191,-500.0,0.0001726,2]
[350589778,1737978644202,-500.0,0.0001726,2]
[350589779,1737978644212,-500.0,0.0001726,2]
[350589780,1737978644226,-500.0,0.0001726,2]
[350589781,1737978644238,-500.0,0.0001726,2]
[350589782,1737978644250,-151.0,0.0001726,2]
[350589783,1737978644262,-739.51,0.0001726,2]
[350589784,1737978644274,-500.0,0.0001726,2]
[350589785,1737978644287,-307.54,0.0001726,2]
[350589786,1737978644298,-473.954612,0.0001726,2]
[350589787,1737978644311,-473.954612,0.0001726,2]
[350589788,1737978644322,-500.0,0.00017397,2]
[350589789,1737978644336,-500.0,0.00017397,2]
[350589790,1737978644348,-617.07,0.00017397,2]
[350589791,1737978644359,-595.06,0.00017397,2]
[350589792,1737978644370,-3060.68,0.00017397,2]
[350589793,1737978644382,-500.0,0.00017397,2]
[350589794,1737978644394,-500.0,0.00017397,2]
[350589795,1737978644406,-531.51,0.00017397,2]
[350589796,1737978644418,-500.0,0.00017397,2]
[350589797,1737978644430,-500.0,0.00017397,2]
[350589798,1737978644442,-500.0,0.00017397,2]
[350589799,1737978644455,-739.51,0.00017397,2]
[350589800,1737978644465,-500.0,0.00017397,2]
[350589801,1737978644476,-500.9899624,0.00017533,2]
[350589802,1737978644488,-47855.44244814,0.00017533,5]
[350589803,1737978644498,-500.0,0.00017534,2]
[350589804,1737978644510,-500.0,0.00017534,2]
[350589805,1737978644522,-617.07,0.00017534,2]
[350589806,1737978644534,-595.06,0.00017534,2]
[350589807,1737978644547,-3060.68,0.00017534,2]
[350589808,1737978644558,-500.0,0.00017534,2]
[350589809,1737978644571,-500.0,0.00017534,2]
[350589810,1737978644583,-500.0,0.00017534,2]
[350589811,1737978644596,-481.27,0.00017534,2]
[350589812,1737978644610,-500.0,0.00017534,2]
[350589813,1737978644622,-739.51,0.00017534,2]
[350589814,1737978644633,-500.0,0.00017534,2]
[350589815,1737978644643,-151.0,0.00017534,2]
[350589816,1737978644656,-151.0,0.0001767,2]
[350589817,1737978644667,-151.0,0.0001767,2]
[350589818,1737978644678,-151.0,0.0001767,2]
[350589819,1737978644691,-158.885,0.00017671,2]
[350589820,1737978644704,-151.0,0.00017671,2]
[350589821,1737978644717,-151.0,0.00017671,2]
[350589822,1737978644728,-151.0,0.00017671,2]
[350589823,1737978644738,-410.2,0.00017671,2]
[350589824,1737978644749,-500.0,0.00017671,2]
[350589825,1737978644761,-955.844356,0.00017671,2]
[350589826,1737978644772,-955.844356,0.00017671,2]
[350589827,1737978644785,-617.07,0.00017671,2]
[350589828,1737978644796,-595.06,0.00017671,2]
[350589829,1737978644806,-3060.68,0.00017671,2]
[350589830,1737978644817,-500.0,0.00017671,2]
[350589831,1737978644828,-500.0,0.00017671,2]
[350589832,1737978644838,-500.0,0.00017671,2]
[350589833,1737978644848,-500.0,0.00017671,2]
[350589834,1737978644859,-739.51,0.00017671,2]
[350589835,1737978644869,-151.0,0.00017671,2]
[350589836,1737978644880,-500.0,0.00017671,2]
[350589837,1737978644892,-151.0,0.00017671,2]
[350589838,1737978644906,-151.0,0.000177,2]
[350589839,1737978644916,-500.0,0.00017808,2]
[350589840,1737978644927,-617.07,0.00017808,2]
[350589841,1737978644938,-595.06,0.00017808,2]
[350589842,1737978644949,-3060.68,0.00017808,2]
[350589843,1737978644963,-550.0,0.00017808,2]
[350589844,1737978644973,-500.0,0.00017808,2]
[350589845,1737978644984,-356.81,0.00017808,2]
[350589846,1737978644995,-500.0,0.00017808,2]
[350589847,1737978645007,-739.51,0.00017808,2]
[350589848,1737978645018,-500.0,0.00017808,2]
[350589849,1737978645029,-500.0,0.00017945,2]
[350589850,1737978645040,-617.07,0.00017945,2]
[350589851,1737978645051,-595.06,0.00017945,2]
[350589852,1737978645062,-3060.68,0.00017945,2]
[350589853,1737978645072,-500.0,0.00017945,2]
[350589854,1737978645083,-500.0,0.00017945,2]
[350589855,1737978645095,-739.51,0.00017945,2]
[350589856,1737978645106,-500.0,0.00017945,2]
[350589857,1737978645117,-1000.0,0.00017972,2]
[350589858,1737978645128,-151.0,0.00018,2]
[350589859,1737978645140,-500.0,0.00018082,2]
[350589860,1737978645151,-617.07,0.00018082,2]
[350589861,1737978645163,-595.06,0.00018082,2]
[350589862,1737978645174,-3060.68,0.00018082,2]
[350589863,1737978645185,-488.93,0.00018082,2]
[350589864,1737978645196,-500.0,0.00018082,2]
[350589865,1737978645207,-739.51,0.00018082,2]
[350589866,1737978645218,-500.0,0.00018082,2]
[350589867,1737978645228,-500.0,0.00018219,2]
[350589868,1737978645238,-617.07,0.00018219,2]
[350589869,1737978645247,-595.06,0.00018219,2]
[350589870,1737978645257,-3060.68,0.00018219,2]
[350589871,1737978645266,-500.0,0.00018219,2]
[350589872,1737978645275,-739.51,0.00018219,2]
[350589873,1737978645284,-500.0,0.00018219,2]
[350589874,1737978645293,-500.0,0.00018356,2]
[350589875,1737978645302,-617.07,0.00018356,2]
[350589876,1737978645312,-595.06,0.00018356,2]
[350589877,1737978645322,-3060.68,0.00018356,2]
[350589878,1737978645331,-500.0,0.00018356,2]
[350589879,1737978645341,-739.51,0.00018356,2]
[350589880,1737978645351,-500.0,0.00018356,2]
[350589881,1737978645360,-151.0,0.000184,2]
[350589882,1737978645369,-611.36,0.00018493,2]
[350589883,1737978645379,-617.07,0.00018493,2]
[350589884,1737978645389,-595.06,0.00018493,2]
[350589885,1737978645398,-3060.68,0.00018493,2]
[350589886,1737978645542,-356.91,0.00018493,2]
[350589887,1737978645553,-739.51,0.00018493,2]
[350589888,1737978645562,-500.0,0.00018493,2]
[350589889,1737978645572,-473.954612,0.00018493,2]
[350589890,1737978645581,-473.954612,0.00018493,2]
[350589891,1737978645591,-150.68,0.000186,2]
[350589892,1737978645600,-150.68,0.000186,2]
[350589893,1737978645610,-617.07,0.0001863,2]
[350589894,1737978645619,-595.06,0.0001863,2]
[350589895,1737978645628,-3060.68,0.0001863,2]
[350589896,1737978645638,-739.51,0.0001863,2]
[350589897,1737978645648,-243.95998705,0.0001863,2]
[350589898,1737978645658,-151.0,0.000187,2]
[350589900,1737978645668,-617.07,0.00018767,2]
[350589901,1737978645677,-595.06,0.00018767,2]
[350589902,1737978645686,-3060.68,0.00018767,2]
[350589903,1737978645695,-739.51,0.00018767,2]
[350589904,1737978645705,-1674.09533818,0.000189,2]
[350589905,1737978645715,-151.0,0.000189,2]
[350589906,1737978645724,-617.07,0.00018904,2]
[350589907,1737978645734,-595.06,0.00018904,2]
[350589908,1737978645744,-3060.68,0.00018904,2]
[350589909,1737978645754,-739.51,0.00018904,2]
[350589910,1737978645763,-309.7,0.0001891,2]
[350589911,1737978645772,-2380.85110087,0.00019,4]
[350589912,1737978645781,-151.0,0.00019,2]
[350589913,1737978645790,-156.008986,0.00019,2]
[350589914,1737978645800,-151.0,0.00019041,2]
[350589915,1737978645809,-955.844356,0.00019041,2]
[350589916,1737978645818,-955.844356,0.00019041,2]
[350589917,1737978645827,-617.07,0.00019041,2]
[350589918,1737978645837,-595.06,0.00019041,2]
[350589919,1737978645846,-3060.68,0.00019041,2]
[350589920,1737978645855,-151.0,0.00019041,2]
[350589921,1737978645864,-151.0,0.00019041,2]
[350589922,1737978645874,-151.0,0.00019041,2]
[350589923,1737978645883,-739.51,0.00019041,2]
[350589924,1737978645893,-1000.0,0.00019068,2]
[350589925,1737978645902,-151.0,0.00019077,2]
[350589926,1737978645912,-151.0,0.000191,2]
[350589927,1737978645921,-1234.53,0.000191,2]
[350589928,1737978645930,-500.0,0.00019178,7]
[350589929,1737978645941,-500.0,0.00019178,2]
[350589930,1737978645951,-617.07,0.00019178,2]
[350589931,1737978645960,-595.06,0.00019178,2]
[350589932,1737978645970,-3060.68,0.00019178,2]
[350589933,1737978645980,-739.51,0.00019178,2]
[350589934,1737978645990,-205.624375,0.00019178,2]
[350589936,1737978646000,-151.0,0.00019315,2]
[350589938,1737978646009,-151.0,0.00019315,2]
[350589939,1737978646019,-151.0,0.00019315,2]
[350589940,1737978646031,-151.0,0.00019315,2]
[350589941,1737978646041,-617.07,0.00019315,2]
[350589942,1737978646051,-595.06,0.00019315,2]
[350589943,1737978646060,-3060.68,0.00019315,2]
[350589944,1737978646070,-739.51,0.00019315,2]
[350589945,1737978646080,-2054.0,0.00019397,2]
[350589946,1737978646089,-536.0,0.00019397,2]
[350589947,1737978646099,-2259.299,0.00019397,2]
[350589948,1737978646109,-151.0,0.000194,2]
[350589949,1737978646118,-617.07,0.00019452,2]
[350589950,1737978646127,-595.06,0.00019452,2]
[350589951,1737978646137,-3060.68,0.00019452,2]
[350589952,1737978646147,-739.51,0.00019452,2]
[350589953,1737978646157,-151.0,0.00019588,2]
[350589954,1737978646167,-151.0,0.00019588,2]
[350589955,1737978646176,-151.0,0.00019588,2]
[350589956,1737978646186,-617.17376777,0.00019589,2]
[350589957,1737978646196,-595.25,0.00019589,2]
[350589958,1737978646206,-3060.8049,0.00019589,2]
[350589959,1737978646215,-739.61,0.00019589,2]
[350589960,1737978646225,-500.0,0.0001972,2]
[350589961,1737978646235,-500.0,0.0001972,2]
[350589962,1737978646244,-582.38848532,0.0001972,2]
[350589963,1737978646253,-155.859345,0.00019796,15]
[350589964,1737978646262,-151.0,0.000198,2]
[350589965,1737978646273,-500.0,0.00019863,9]
[350589966,1737978646282,-151.0,0.00019899,2]
[350589967,1737978646292,-92014.14160189,0.000199,2]
[350589968,1737978646301,-33.53682333,0.000199,2]
[350589969,1737978646371,-118.60909667,0.000199,2]
[350589970,1737978646381,-151.0,0.000199,2]
[350589971,1737978646390,-151.0,0.000199,2]
[350589972,1737978646400,-151.0,0.000199,2]
[350589973,1737978646411,-151.0,0.000199,2]
[350589974,1737978646421,-151.0,0.000199,2]
[350589975,1737978646430,-151.0,0.000199,2]
[350589976,1737978646440,-151.0,0.000199,2]
[350589977,1737978646449,-151.0,0.000199,2]
[350589978,1737978646459,-151.0,0.000199,2]
[350589979,1737978646468,-151.0,0.000199,2]
[350589980,1737978646478,-955.844356,0.000199,2]
[350589981,1737978646488,-955.844356,0.000199,2]
[350589982,1737978646497,-153.678091,0.000199,2]
[350589983,1737978646507,-151.0,0.000199,2]
[350589984,1737978646518,-169.17796395,0.000199,2]
[350589985,1737978646567,-304.77664805,0.000199,2]
[350589986,1737978646578,-473.954612,0.000199,2]
[350589987,1737978646587,-160.0,0.0002,2]
[350589988,1737978646597,-3561.22624235,0.0002,2]
[350589989,1737978646608,-4351.44815213,0.0002,2]
[350589990,1737978646632,-1264.44,0.0002,2]
[350589991,1737978646645,-8615.57158343,0.0002,2]
[350589992,1737978646657,-1630.34300877,0.0002,2]
[350589993,1737978646666,-11145.88198433,0.0002,2]
[350589994,1737978646676,-2070.7750069,0.0002,2]
[350589995,1737978646688,-5174.2249931,0.0002,2]
[350589996,1737978646698,-10791.06029147,0.0002,20]
[350589997,1737978646710,-495.99999994,0.0002,20]
[350589998,1737978646804,-151.0,0.00016986,2]
[350589999,1737978646813,-35463.61623572,0.0002,20]
[350590000,1737978646822,-300.0,0.0002,8]
[350590001,1737978646832,-210.092666,0.0002,2]
[350590002,1737978646841,-151.0,0.0002,2]
[350590003,1737978646851,-153.46487,0.0002,2]
[350590004,1737978646860,-151.0,0.0002,2]
[350590005,1737978646870,-151.0,0.0002,2]
[350590006,1737978646879,-151.0,0.0002,2]
[350590007,1737978646889,-151.0,0.0002,2]